Workbook

Sheet Example Data
A1: Rep Name | B1: Division | C1: Years of Service | D1: Office | E1: Product Line | F1: Jan '23 Sales | G1: Feb '23 Sales | H1: Mar '23 Sales | I1: Apr '23 Sales | J1: May '23 Sales | K1: Jun '23 Sales | L1: Jul '23 Sales | M1: Aug '23 Sales | N1: Sep '23 Sales | O1: Oct '23 Sales | P1: Nov '23 Sales | Q1: Dec '23 Sales
A2: Aiden | B2: Eastern | C2: 1-15 | D2: Regional Office | E2: Red Line | F2: 43088 | G2: 49622 | H2: 55022 | I2: 44773 | J2: 37947 | K2: 31151 | L2: 44749 | M2: 51187 | N2: 44301 | O2: 49373 | P2: 30808 | Q2: 38174
A3: Cam | B3: Eastern | C3: 1-15 | D3: Satellite Office | E3: Blue Line | F3: 49568 | G3: 31677 | H3: 37473 | I3: 49823 | J3: 48399 | K3: 33053 | L3: 55899 | M3: 45613 | N3: 53277 | O3: 45205 | P3: 54153 | Q3: 37180
A4: Rodrigo | B4: Western | C4: 16-30 | D4: Satellite Office | E4: Blue Line | F4: 41107 | G4: 54474 | H4: 34968 | I4: 45911 | J4: 30109 | K4: 52646 | L4: 37564 | M4: 47606 | N4: 46534 | O4: 46150 | P4: 39191 | Q4: 45605
A5: Liam | B5: Western | C5: 16-30 | D5: Home Office | E5: Orange Line | F5: 51734 | G5: 32650 | H5: 38035 | I5: 45420 | J5: 39822 | K5: 41141 | L5: 44823 | M5: 38626 | N5: 32508 | O5: 46834 | P5: 34396 | Q5: 48335
A6: Peiola | B6: International | C6: 1-15 | D6: Home Office | E6: Orange Line | F6: 46837 | G6: 47459 | H6: 43975 | I6: 54172 | J6: 50582 | K6: 54523 | L6: 46937 | M6: 44649 | N6: 45693 | O6: 52609 | P6: 35361 | Q6: 50404
A7: Jack | B7: Western | C7: 16-30 | D7: Satellite Office | E7: Blue Line | F7: 55544 | G7: 46828 | H7: 36822 | I7: 34858 | J7: 52576 | K7: 30158 | L7: 47500 | M7: 55537 | N7: 50931 | O7: 36122 | P7: 53614 | Q7: 34353
A8: Nora | B8: Southern | C8: 16-30 | D8: Satellite Office | E8: Blue Line | F8: 32211 | G8: 46725 | H8: 53770 | I8: 39571 | J8: 50084 | K8: 44620 | L8: 46818 | M8: 52995 | N8: 53548 | O8: 48707 | P8: 37049 | Q8: 45819
A9: Ananya | B9: International | C9: 31+ | D9: Satellite Office | E9: Blue Line | F9: 45375 | G9: 35171 | H9: 36170 | I9: 47549 | J9: 38226 | K9: 32022 | L9: 34380 | M9: 30058 | N9: 42763 | O9: 37764 | P9: 51279 | Q9: 49283
A10: Nalu | B10: International | C10: 31+ | D10: Satellite Office | E10: Blue Line | F10: 43629 | G10: 47125 | H10: 33849 | I10: 41416 | J10: 41936 | K10: 45524 | L10: 39793 | M10: 37651 | N10: 42346 | O10: 38653 | P10: 35115 | Q10: 55862
A11: Kaelity | B11: Southern | C11: 31+ | D11: Regional Office | E11: Red Line | F11: 42628 | G11: 41552 | H11: 40988 | I11: 52514 | J11: 48512 | K11: 53325 | L11: 33644 | M11: 34720 | N11: 33281 | O11: 37667 | P11: 33293 | Q11: 48827
A12: Zara | B12: Northern | C12: 31+ | D12: Corporate Headquarters | E12: Yellow Line | F12: 53769 | G12: 45488 | H12: 47652 | I12: 54682 | J12: 44829 | K12: 55006 | L12: 52822 | M12: 49446 | N12: 47369 | O12: 45191 | P12: 47414 | Q12: 52892
A13: Wyatt | B13: Southern | C13: 1-15 | D13: Corporate Headquarters | E13: Yellow Line | F13: 34548 | G13: 38104 | H13: 45289 | I13: 43639 | J13: 32589 | K13: 33003 | L13: 40844 | M13: 52284 | N13: 46363 | O13: 52992 | P13: 45800 | Q13: 53944
A14: Liko | B14: International | C14: 16-30 | D14: Home Office | E14: Orange Line | F14: 31017 | G14: 37608 | H14: 43032 | I14: 47695 | J14: 35846 | K14: 55239 | L14: 50475 | M14: 36841 | N14: 36565 | O14: 41243 | P14: 39565 | Q14: 46804
A15: Leo | B15: International | C15: 16-30 | D15: Regional Office | E15: Red Line | F15: 46719 | G15: 37665 | H15: 44002 | I15: 48971 | J15: 51225 | K15: 33200 | L15: 45633 | M15: 49787 | N15: 55297 | O15: 53841 | P15: 38019 | Q15: 32131
A16: Penelope | B16: Western | C16: 31+ | D16: Corporate Headquarters | E16: Yellow Line | F16: 43814 | G16: 35827 | H16: 44299 | I16: 42169 | J16: 43974 | K16: 55341 | L16: 35227 | M16: 51487 | N16: 31767 | O16: 45128 | P16: 41060 | Q16: 34503
A17: Brayden | B17: Eastern | C17: 1-15 | D17: Regional Office | E17: Red Line | F17: 35171 | G17: 51218 | H17: 36847 | I17: 36450 | J17: 40937 | K17: 36342 | L17: 34345 | M17: 48476 | N17: 30762 | O17: 49679 | P17: 51289 | Q17: 54222
A18: Caleb | B18: Western | C18: 1-15 | D18: Corporate Headquarters | E18: Yellow Line | F18: 51879 | G18: 48697 | H18: 35533 | I18: 46268 | J18: 31895 | K18: 47439 | L18: 42020 | M18: 31460 | N18: 49702 | O18: 33472 | P18: 51958 | Q18: 50578
A19: Emma | B19: International | C19: 16-30 | D19: Home Office | E19: Orange Line | F19: 45094 | G19: 32292 | H19: 54616 | I19: 38895 | J19: 39955 | K19: 43837 | L19: 42549 | M19: 42904 | N19: 41083 | O19: 42506 | P19: 41443 | Q19: 41875
A20: Philipe | B20: Northern | C20: 31+ | D20: Corporate Headquarters | E20: Yellow Line | F20: 40107 | G20: 33182 | H20: 47839 | I20: 54946 | J20: 52232 | K20: 31681 | L20: 51816 | M20: 53952 | N20: 55056 | O20: 32338 | P20: 34383 | Q20: 45834
A21: Raj | B21: Eastern | C21: 31+ | D21: Satellite Office | E21: Blue Line | F21: 35794 | G21: 41955 | H21: 49055 | I21: 41841 | J21: 55110 | K21: 30031 | L21: 44259 | M21: 33795 | N21: 41163 | O21: 35502 | P21: 45145 | Q21: 45245
A22: Quin | B22: Northern | C22: 1-15 | D22: Satellite Office | E22: Blue Line | F22: 54538 | G22: 43420 | H22: 37957 | I22: 44561 | J22: 33680 | K22: 50889 | L22: 54703 | M22: 53955 | N22: 38775 | O22: 49643 | P22: 36509 | Q22: 30979
A23: Grace | B23: Eastern | C23: 31+ | D23: Corporate Headquarters | E23: Yellow Line | F23: 33028 | G23: 38868 | H23: 53149 | I23: 35727 | J23: 45722 | K23: 33253 | L23: 52924 | M23: 49456 | N23: 55218 | O23: 48970 | P23: 41482 | Q23: 49009
A24: Winona | B24: Eastern | C24: 31+ | D24: Home Office | E24: Orange Line | F24: 52029 | G24: 35889 | H24: 40870 | I24: 38185 | J24: 53415 | K24: 50488 | L24: 31481 | M24: 30297 | N24: 53307 | O24: 50253 | P24: 35844 | Q24: 33868
A25: Zoe | B25: Midwest | C25: 31+ | D25: Corporate Headquarters | E25: Yellow Line | F25: 44294 | G25: 38190 | H25: 31053 | I25: 34839 | J25: 37302 | K25: 40423 | L25: 45238 | M25: 54520 | N25: 48725 | O25: 52393 | P25: 48966 | Q25: 55971
A26: Victoria | B26: Eastern | C26: 31+ | D26: Home Office | E26: Orange Line | F26: 51583 | G26: 44533 | H26: 47792 | I26: 53107 | J26: 55593 | K26: 53515 | L26: 34358 | M26: 31748 | N26: 43358 | O26: 38392 | P26: 42902 | Q26: 30079
A27: Ethan | B27: Eastern | C27: 31+ | D27: Satellite Office | E27: Blue Line | F27: 54745 | G27: 39533 | H27: 54708 | I27: 54974 | J27: 44967 | K27: 48502 | L27: 37528 | M27: 50508 | N27: 33554 | O27: 49013 | P27: 30290 | Q27: 54556
A28: Luke | B28: Eastern | C28: 16-30 | D28: Regional Office | E28: Red Line | F28: 34199 | G28: 33714 | H28: 41840 | I28: 31202 | J28: 50271 | K28: 49826 | L28: 33061 | M28: 34503 | N28: 48757 | O28: 53930 | P28: 39704 | Q28: 42610
A29: Antonio | B29: International | C29: 31+ | D29: Home Office | E29: Orange Line | F29: 47181 | G29: 54672 | H29: 50751 | I29: 30175 | J29: 36311 | K29: 33029 | L29: 47554 | M29: 35641 | N29: 51290 | O29: 39226 | P29: 33248 | Q29: 45063
A30: Lolani | B30: Southern | C30: 16-30 | D30: Home Office | E30: Orange Line | F30: 54825 | G30: 40077 | H30: 35599 | I30: 35857 | J30: 42863 | K30: 45712 | L30: 39466 | M30: 42830 | N30: 33107 | O30: 31053 | P30: 55664 | Q30: 46906
A31: Noah | B31: Midwest | C31: 16-30 | D31: Regional Office | E31: Red Line | F31: 33951 | G31: 48396 | H31: 46221 | I31: 36786 | J31: 33014 | K31: 33311 | L31: 31173 | M31: 54526 | N31: 49930 | O31: 35379 | P31: 38652 | Q31: 30556
A32: Logan | B32: International | C32: 31+ | D32: Home Office | E32: Orange Line | F32: 55775 | G32: 42572 | H32: 41339 | I32: 41327 | J32: 53331 | K32: 37226 | L32: 38553 | M32: 42436 | N32: 34535 | O32: 52653 | P32: 35589 | Q32: 38890
A33: Mason | B33: International | C33: 31+ | D33: Satellite Office | E33: Blue Line | F33: 35421 | G33: 48283 | H33: 50071 | I33: 33927 | J33: 52590 | K33: 45238 | L33: 39433 | M33: 33168 | N33: 38171 | O33: 54115 | P33: 42016 | Q33: 50578
A34: Tahoma | B34: Eastern | C34: 1-15 | D34: Home Office | E34: Orange Line | F34: 38016 | G34: 37352 | H34: 47085 | I34: 48775 | J34: 33979 | K34: 37621 | L34: 38892 | M34: 38209 | N34: 47748 | O34: 41055 | P34: 35161 | Q34: 32343
A35: Levi | B35: Eastern | C35: 16-30 | D35: Satellite Office | E35: Blue Line | F35: 36024 | G35: 47824 | H35: 53874 | I35: 33182 | J35: 37676 | K35: 40139 | L35: 50274 | M35: 36660 | N35: 45749 | O35: 44819 | P35: 35052 | Q35: 51694
A36: Manitou | B36: International | C36: 16-30 | D36: Corporate Headquarters | E36: Yellow Line | F36: 41238 | G36: 33525 | H36: 50079 | I36: 41362 | J36: 43785 | K36: 35935 | L36: 45996 | M36: 50660 | N36: 49573 | O36: 55318 | P36: 53116 | Q36: 55731
A37: Sofia | B37: Midwest | C37: 16-30 | D37: Corporate Headquarters | E37: Yellow Line | F37: 36935 | G37: 31591 | H37: 54491 | I37: 44361 | J37: 42833 | K37: 33782 | L37: 36440 | M37: 37487 | N37: 41261 | O37: 32201 | P37: 47882 | Q37: 32854
A38: Jackson | B38: Northern | C38: 16-30 | D38: Home Office | E38: Orange Line | F38: 55903 | G38: 46920 | H38: 41313 | I38: 32645 | J38: 41734 | K38: 49370 | L38: 48220 | M38: 51581 | N38: 47606 | O38: 37638 | P38: 46474 | Q38: 53260
A39: Abigail | B39: Eastern | C39: 31+ | D39: Corporate Headquarters | E39: Yellow Line | F39: 51685 | G39: 37259 | H39: 44541 | I39: 39092 | J39: 31667 | K39: 30452 | L39: 49525 | M39: 33440 | N39: 46454 | O39: 37510 | P39: 47165 | Q39: 51225
A40: Mia | B40: Southern | C40: 16-30 | D40: Corporate Headquarters | E40: Yellow Line | F40: 37795 | G40: 54875 | H40: 40092 | I40: 54926 | J40: 33286 | K40: 49177 | L40: 36682 | M40: 54493 | N40: 31417 | O40: 50658 | P40: 46471 | Q40: 51724
A41: Savannah | B41: Southern | C41: 1-15 | D41: Home Office | E41: Orange Line | F41: 53326 | G41: 36588 | H41: 41961 | I41: 45054 | J41: 37377 | K41: 46971 | L41: 39038 | M41: 41294 | N41: 53536 | O41: 40709 | P41: 55949 | Q41: 53592
A42: Owen | B42: Northern | C42: 16-30 | D42: Corporate Headquarters | E42: Yellow Line | F42: 31026 | G42: 45558 | H42: 55806 | I42: 45099 | J42: 45572 | K42: 46492 | L42: 34084 | M42: 37706 | N42: 46019 | O42: 53001 | P42: 42998 | Q42: 38269
A43: Santiago | B43: Southern | C43: 1-15 | D43: Home Office | E43: Orange Line | F43: 54234 | G43: 54696 | H43: 35833 | I43: 34366 | J43: 33327 | K43: 36203 | L43: 52399 | M43: 33587 | N43: 41263 | O43: 50281 | P43: 52851 | Q43: 37278
A44: Chloe | B44: Midwest | C44: 16-30 | D44: Satellite Office | E44: Blue Line | F44: 33725 | G44: 55114 | H44: 39088 | I44: 55322 | J44: 46900 | K44: 49078 | L44: 37101 | M44: 49513 | N44: 43118 | O44: 31062 | P44: 55269 | Q44: 42140
A45: Leilani | B45: Western | C45: 16-30 | D45: Regional Office | E45: Red Line | F45: 32536 | G45: 46837 | H45: 41582 | I45: 35370 | J45: 42015 | K45: 43335 | L45: 37030 | M45: 41918 | N45: 37319 | O45: 47282 | P45: 52516 | Q45: 45644
A46: Ayita | B46: Northern | C46: 16-30 | D46: Regional Office | E46: Red Line | F46: 41682 | G46: 54044 | H46: 37439 | I46: 34018 | J46: 51298 | K46: 47024 | L46: 32303 | M46: 35621 | N46: 32812 | O46: 38229 | P46: 32303 | Q46: 49346
A47: Samuel | B47: Southern | C47: 31+ | D47: Home Office | E47: Orange Line | F47: 47120 | G47: 54911 | H47: 43065 | I47: 39693 | J47: 42424 | K47: 38553 | L47: 52106 | M47: 30539 | N47: 53943 | O47: 39893 | P47: 47098 | Q47: 48233
A48: Maya | B48: Eastern | C48: 16-30 | D48: Home Office | E48: Orange Line | F48: 40498 | G48: 32687 | H48: 54346 | I48: 31140 | J48: 34903 | K48: 31062 | L48: 45862 | M48: 30273 | N48: 51124 | O48: 48123 | P48: 36107 | Q48: 46755
A49: Odina | B49: Western | C49: 16-30 | D49: Satellite Office | E49: Blue Line | F49: 48766 | G49: 41143 | H49: 43387 | I49: 52656 | J49: 50832 | K49: 41432 | L49: 33378 | M49: 45518 | N49: 35487 | O49: 37143 | P49: 32803 | Q49: 45807
A50: Azurino | B50: Western | C50: 1-15 | D50: Home Office | E50: Orange Line | F50: 33311 | G50: 35078 | H50: 44477 | I50: 52510 | J50: 32710 | K50: 46268 | L50: 50592 | M50: 37001 | N50: 51988 | O50: 50908 | P50: 30350 | Q50: 33229
A51: Layla | B51: Eastern | C51: 16-30 | D51: Corporate Headquarters | E51: Yellow Line | F51: 43924 | G51: 49067 | H51: 30829 | I51: 55736 | J51: 45935 | K51: 48571 | L51: 35195 | M51: 43693 | N51: 48637 | O51: 33402 | P51: 37237 | Q51: 42317
A52: Ava | B52: International | C52: 1-15 | D52: Home Office | E52: Orange Line | F52: 44224 | G52: 31296 | H52: 34739 | I52: 36299 | J52: 44597 | K52: 44796 | L52: 44486 | M52: 43141 | N52: 32284 | O52: 51374 | P52: 38641 | Q52: 33310
A53: Jayden | B53: International | C53: 1-15 | D53: Satellite Office | E53: Blue Line | F53: 38720 | G53: 48773 | H53: 39915 | I53: 53319 | J53: 38197 | K53: 34558 | L53: 55659 | M53: 30645 | N53: 53116 | O53: 33259 | P53: 54293 | Q53: 42813
A54: Zoey | B54: Southern | C54: 31+ | D54: Corporate Headquarters | E54: Yellow Line | F54: 47174 | G54: 45470 | H54: 45409 | I54: 52257 | J54: 40345 | K54: 41861 | L54: 35647 | M54: 52194 | N54: 40785 | O54: 48082 | P54: 30286 | Q54: 40107
A55: Koa | B55: International | C55: 31+ | D55: Satellite Office | E55: Blue Line | F55: 41722 | G55: 53292 | H55: 36149 | I55: 31453 | J55: 42291 | K55: 52068 | L55: 37597 | M55: 53983 | N55: 48070 | O55: 32533 | P55: 47325 | Q55: 53477
A56: Isabella | B56: Midwest | C56: 16-30 | D56: Regional Office | E56: Red Line | F56: 53550 | G56: 47452 | H56: 34829 | I56: 41006 | J56: 52410 | K56: 54542 | L56: 36610 | M56: 48820 | N56: 36500 | O56: 48576 | P56: 41857 | Q56: 47859
A57: Ed | B57: International | C57: 16-30 | D57: Home Office | E57: Orange Line | F57: 39537 | G57: 36742 | H57: 43016 | I57: 31360 | J57: 33008 | K57: 37461 | L57: 31924 | M57: 33726 | N57: 32304 | O57: 47692 | P57: 45173 | Q57: 41957
A58: Diego | B58: Southern | C58: 31+ | D58: Corporate Headquarters | E58: Yellow Line | F58: 38469 | G58: 43266 | H58: 53140 | I58: 38859 | J58: 51454 | K58: 44494 | L58: 36222 | M58: 30479 | N58: 44471 | O58: 52824 | P58: 33575 | Q58: 40850
A59: Meera | B59: Western | C59: 16-30 | D59: Home Office | E59: Orange Line | F59: 32327 | G59: 39375 | H59: 52224 | I59: 50660 | J59: 30572 | K59: 46891 | L59: 54587 | M59: 38219 | N59: 37980 | O59: 45863 | P59: 45785 | Q59: 40772
A60: Aria | B60: International | C60: 16-30 | D60: Corporate Headquarters | E60: Yellow Line | F60: 43837 | G60: 41590 | H60: 36957 | I60: 54189 | J60: 30292 | K60: 39177 | L60: 53879 | M60: 54604 | N60: 43749 | O60: 42027 | P60: 40690 | Q60: 39954
A61: Lolilta | B61: International | C61: 31+ | D61: Corporate Headquarters | E61: Yellow Line | F61: 41816 | G61: 46731 | H61: 54983 | I61: 54719 | J61: 53426 | K61: 37956 | L61: 32108 | M61: 42144 | N61: 53822 | O61: 39218 | P61: 40900 | Q61: 40610
A62: Priya | B62: Southern | C62: 16-30 | D62: Satellite Office | E62: Blue Line | F62: 54888 | G62: 44629 | H62: 51116 | I62: 45227 | J62: 33167 | K62: 42301 | L62: 34088 | M62: 51450 | N62: 52569 | O62: 52633 | P62: 33890 | Q62: 43166
A63: Kaya | B63: Southern | C63: 31+ | D63: Regional Office | E63: Red Line | F63: 41587 | G63: 50798 | H63: 42422 | I63: 42545 | J63: 42736 | K63: 53187 | L63: 53063 | M63: 36700 | N63: 35427 | O63: 44387 | P63: 32380 | Q63: 34038
A64: Lucas | B64: Western | C64: 31+ | D64: Satellite Office | E64: Blue Line | F64: 45751 | G64: 37633 | H64: 47299 | I64: 34100 | J64: 33731 | K64: 49857 | L64: 42991 | M64: 53034 | N64: 53474 | O64: 49585 | P64: 34688 | Q64: 39406
A65: Frial | B65: Northern | C65: 1-15 | D65: Home Office | E65: Orange Line | F65: 36570 | G65: 49815 | H65: 36365 | I65: 33201 | J65: 45433 | K65: 38843 | L65: 38563 | M65: 45059 | N65: 50306 | O65: 54348 | P65: 33368 | Q65: 40930
A66: Madison | B66: Southern | C66: 31+ | D66: Satellite Office | E66: Blue Line | F66: 53206 | G66: 39088 | H66: 32289 | I66: 41291 | J66: 30248 | K66: 46863 | L66: 46991 | M66: 36793 | N66: 41514 | O66: 44073 | P66: 31703 | Q66: 55256
A67: Luis | B67: Southern | C67: 1-15 | D67: Home Office | E67: Orange Line | F67: 55459 | G67: 42922 | H67: 45908 | I67: 41311 | J67: 34210 | K67: 54565 | L67: 44997 | M67: 38284 | N67: 33944 | O67: 49675 | P67: 41050 | Q67: 45654
A68: Olivia | B68: Midwest | C68: 16-30 | D68: Corporate Headquarters | E68: Yellow Line | F68: 52671 | G68: 41511 | H68: 38938 | I68: 40067 | J68: 54291 | K68: 53349 | L68: 35048 | M68: 43118 | N68: 42220 | O68: 33272 | P68: 55106 | Q68: 37790
A69: Mahina | B69: International | C69: 16-30 | D69: Corporate Headquarters | E69: Yellow Line | F69: 31934 | G69: 37793 | H69: 48236 | I69: 42600 | J69: 45221 | K69: 49522 | L69: 32901 | M69: 51703 | N69: 37761 | O69: 36375 | P69: 45255 | Q69: 37714
A70: Marta | B70: Midwest | C70: 31+ | D70: Corporate Headquarters | E70: Yellow Line | F70: 43588 | G70: 43662 | H70: 45129 | I70: 51021 | J70: 51861 | K70: 37676 | L70: 55248 | M70: 41873 | N70: 39158 | O70: 54584 | P70: 55734 | Q70: 35206
A71: Thaloina | B71: Western | C71: 1-15 | D71: Satellite Office | E71: Blue Line | F71: 37423 | G71: 37193 | H71: 32662 | I71: 36502 | J71: 53200 | K71: 41096 | L71: 37592 | M71: 47707 | N71: 54666 | O71: 53194 | P71: 47556 | Q71: 42462
A72: Xanthe | B72: Eastern | C72: 1-15 | D72: Home Office | E72: Orange Line | F72: 54351 | G72: 39328 | H72: 53815 | I72: 33504 | J72: 41297 | K72: 37445 | L72: 39827 | M72: 31493 | N72: 43486 | O72: 42604 | P72: 37585 | Q72: 37241
A73: Benjamin | B73: Midwest | C73: 31+ | D73: Home Office | E73: Orange Line | F73: 32508 | G73: 37735 | H73: 53772 | I73: 30060 | J73: 31282 | K73: 49731 | L73: 51225 | M73: 32280 | N73: 39348 | O73: 54518 | P73: 30366 | Q73: 39384
A74: Mateo | B74: Southern | C74: 1-15 | D74: Satellite Office | E74: Blue Line | F74: 50779 | G74: 39212 | H74: 43176 | I74: 30249 | J74: 43709 | K74: 30657 | L74: 47864 | M74: 43336 | N74: 37308 | O74: 55676 | P74: 40327 | Q74: 39842
A75: Sequoia | B75: Western | C75: 31+ | D75: Regional Office | E75: Red Line | F75: 34006 | G75: 46292 | H75: 34630 | I75: 55963 | J75: 31468 | K75: 43082 | L75: 35784 | M75: 30073 | N75: 48526 | O75: 45750 | P75: 32329 | Q75: 32485
A76: Addison | B76: Southern | C76: 31+ | D76: Corporate Headquarters | E76: Yellow Line | F76: 45057 | G76: 42789 | H76: 37670 | I76: 42617 | J76: 41055 | K76: 46606 | L76: 34174 | M76: 48749 | N76: 49354 | O76: 47426 | P76: 49749 | Q76: 55870
A77: Carter | B77: Midwest | C77: 16-30 | D77: Home Office | E77: Orange Line | F77: 48512 | G77: 49089 | H77: 50568 | I77: 37173 | J77: 42327 | K77: 35548 | L77: 31551 | M77: 50188 | N77: 33216 | O77: 41648 | P77: 48696 | Q77: 42958
A78: Scarlett | B78: Northern | C78: 1-15 | D78: Regional Office | E78: Red Line | F78: 32593 | G78: 38495 | H78: 43559 | I78: 37987 | J78: 42453 | K78: 36707 | L78: 44986 | M78: 36327 | N78: 44889 | O78: 40678 | P78: 46302 | Q78: 33359
A79: Henry | B79: Eastern | C79: 16-30 | D79: Corporate Headquarters | E79: Yellow Line | F79: 51797 | G79: 49652 | H79: 50695 | I79: 30955 | J79: 31001 | K79: 47856 | L79: 41729 | M79: 38313 | N79: 32998 | O79: 42897 | P79: 35128 | Q79: 37587
A80: Gabriel | B80: International | C80: 1-15 | D80: Corporate Headquarters | E80: Yellow Line | F80: 39407 | G80: 51399 | H80: 50140 | I80: 51040 | J80: 49182 | K80: 45963 | L80: 45192 | M80: 38476 | N80: 41388 | O80: 31783 | P80: 48741 | Q80: 30810
A81: Jezell | B81: Northern | C81: 31+ | D81: Satellite Office | E81: Blue Line | F81: 48141 | G81: 51564 | H81: 50809 | I81: 48347 | J81: 41077 | K81: 30321 | L81: 31095 | M81: 36302 | N81: 51393 | O81: 55279 | P81: 35552 | Q81: 54049
A82: Elijah | B82: Midwest | C82: 1-15 | D82: Regional Office | E82: Red Line | F82: 50941 | G82: 31475 | H82: 47329 | I82: 46178 | J82: 46918 | K82: 52445 | L82: 53435 | M82: 54568 | N82: 37346 | O82: 45621 | P82: 54360 | Q82: 39610
A83: Hiroshi | B83: Southern | C83: 16-30 | D83: Satellite Office | E83: Blue Line | F83: 38831 | G83: 35255 | H83: 38048 | I83: 49891 | J83: 47831 | K83: 41920 | L83: 33674 | M83: 40850 | N83: 48950 | O83: 49883 | P83: 55063 | Q83: 46356
A84: Sophia | B84: Eastern | C84: 16-30 | D84: Regional Office | E84: Red Line | F84: 49989 | G84: 36779 | H84: 36511 | I84: 48661 | J84: 30046 | K84: 44102 | L84: 49638 | M84: 33491 | N84: 30812 | O84: 32725 | P84: 55861 | Q84: 41264
A85: Zane | B85: Midwest | C85: 16-30 | D85: Corporate Headquarters | E85: Yellow Line | F85: 37782 | G85: 46262 | H85: 41008 | I85: 37533 | J85: 32753 | K85: 34563 | L85: 37483 | M85: 40015 | N85: 35931 | O85: 31314 | P85: 53019 | Q85: 53866
A86: Amelia | B86: Northern | C86: 16-30 | D86: Regional Office | E86: Red Line | F86: 36799 | G86: 50977 | H86: 43134 | I86: 42598 | J86: 31066 | K86: 49758 | L86: 41016 | M86: 51929 | N86: 39202 | O86: 50600 | P86: 42047 | Q86: 37351
A87: Kae | B87: Southern | C87: 1-15 | D87: Home Office | E87: Orange Line | F87: 46016 | G87: 44914 | H87: 43370 | I87: 46861 | J87: 55973 | K87: 32165 | L87: 48204 | M87: 34639 | N87: 47749 | O87: 49540 | P87: 32906 | Q87: 37871
A88: Mai | B88: Northern | C88: 1-15 | D88: Satellite Office | E88: Blue Line | F88: 30564 | G88: 38612 | H88: 39379 | I88: 45068 | J88: 39944 | K88: 44721 | L88: 42145 | M88: 54069 | N88: 30087 | O88: 33711 | P88: 35991 | Q88: 46849
A89: Lulu | B89: Eastern | C89: 16-30 | D89: Satellite Office | E89: Blue Line | F89: 33012 | G89: 50699 | H89: 41120 | I89: 52114 | J89: 35641 | K89: 40281 | L89: 44608 | M89: 36720 | N89: 39206 | O89: 42286 | P89: 46092 | Q89: 51920
A90: Alejandro | B90: Eastern | C90: 16-30 | D90: Regional Office | E90: Red Line | F90: 35941 | G90: 34640 | H90: 50977 | I90: 54276 | J90: 37086 | K90: 43227 | L90: 49441 | M90: 34147 | N90: 50570 | O90: 39513 | P90: 44699 | Q90: 54789
A91: Alexander | B91: Eastern | C91: 31+ | D91: Corporate Headquarters | E91: Yellow Line | F91: 36113 | G91: 51533 | H91: 40158 | I91: 37167 | J91: 39567 | K91: 51914 | L91: 47980 | M91: 51122 | N91: 55403 | O91: 33495 | P91: 46232 | Q91: 48660
A92: Zeph | B92: Midwest | C92: 31+ | D92: Satellite Office | E92: Blue Line | F92: 51813 | G92: 40445 | H92: 38769 | I92: 35155 | J92: 37398 | K92: 33015 | L92: 51953 | M92: 42060 | N92: 51474 | O92: 31358 | P92: 53985 | Q92: 42551
A93: Nakoda | B93: Northern | C93: 31+ | D93: Home Office | E93: Orange Line | F93: 50269 | G93: 33474 | H93: 52357 | I93: 40264 | J93: 52555 | K93: 36613 | L93: 49214 | M93: 54361 | N93: 33131 | O93: 40204 | P93: 34528 | Q93: 51145
A94: Malia | B94: Southern | C94: 1-15 | D94: Satellite Office | E94: Blue Line | F94: 48378 | G94: 53309 | H94: 39399 | I94: 41899 | J94: 31575 | K94: 47834 | L94: 50733 | M94: 40623 | N94: 51686 | O94: 46517 | P94: 52272 | Q94: 41871
A95: Lily | B95: Southern | C95: 31+ | D95: Corporate Headquarters | E95: Yellow Line | F95: 40244 | G95: 32168 | H95: 31595 | I95: 50049 | J95: 55286 | K95: 36481 | L95: 53037 | M95: 33197 | N95: 55378 | O95: 41803 | P95: 46247 | Q95: 32750
A96: Malik | B96: Midwest | C96: 1-15 | D96: Home Office | E96: Orange Line | F96: 36174 | G96: 41895 | H96: 47793 | I96: 43466 | J96: 33059 | K96: 55509 | L96: 39457 | M96: 52802 | N96: 47204 | O96: 52413 | P96: 41887 | Q96: 54673
A97: Harper | B97: Southern | C97: 16-30 | D97: Regional Office | E97: Red Line | F97: 53912 | G97: 44408 | H97: 41093 | I97: 47264 | J97: 50936 | K97: 53413 | L97: 53702 | M97: 43838 | N97: 45730 | O97: 42054 | P97: 35247 | Q97: 55738
A98: Aiyana | B98: Eastern | C98: 16-30 | D98: Home Office | E98: Orange Line | F98: 35489 | G98: 51243 | H98: 41795 | I98: 34806 | J98: 38431 | K98: 43262 | L98: 55026 | M98: 33796 | N98: 49070 | O98: 54885 | P98: 38957 | Q98: 49154
A99: Takoda | B99: Southern | C99: 16-30 | D99: Corporate Headquarters | E99: Yellow Line | F99: 39776 | G99: 48630 | H99: 33099 | I99: 47118 | J99: 51372 | K99: 44218 | L99: 34755 | M99: 40397 | N99: 41654 | O99: 45374 | P99: 43465 | Q99: 48866
A100: Ella | B100: Midwest | C100: 31+ | D100: Satellite Office | E100: Blue Line | F100: 55979 | G100: 53161 | H100: 39222 | I100: 47869 | J100: 36371 | K100: 51145 | L100: 44965 | M100: 38252 | N100: 52324 | O100: 43313 | P100: 50836 | Q100: 51981
A101: Riley | B101: Midwest | C101: 16-30 | D101: Regional Office | E101: Red Line | F101: 37134 | G101: 39933 | H101: 43982 | I101: 51332 | J101: 39861 | K101: 39955 | L101: 31459 | M101: 41631 | N101: 50358 | O101: 50647 | P101: 34290 | Q101: 33474

Sheet Data
A1: Data for Examples
B3: Division | C3: JAN | D3: FEB | E3: MAR | F3: 1st Qtr | G3: APR | H3: MAY | I3: JUN | J3: 2nd Qtr | K3: JUL | L3: AUG | M3: SEP | N3: 3rd Qtr | O3: OCT | P3: NOV | Q3: DEC | R3: 4th Qtr | S3: Totals
B4: North | C4: 87 | D4: 91 | E4: 95 | F4: =SUM(C4:E4) -> 273 | H4: 84 | I4: 86 | J4: =SUM(G4:I4) -> 170 | K4: 59 | L4: 81 | M4: 66 | N4: =SUM(K4:M4) -> 206 | O4: 71 | P4: 59 | Q4: 89 | R4: =SUM(O4:Q4) -> 219 | S4: =SUM(R4,N4,J4,F4) -> 868
B5: South | C5: 67 | D5: 99 | E5: 92 | F5: 258 | G5: 80 | H5: 99 | I5: 79 | J5: 258 | K5: 71 | L5: 74 | M5: 74 | N5: 219 | O5: 75 | P5: 68 | Q5: 93 | R5: 236 | S5: 971
B6: East | C6: 88 | D6: 55 | E6: 83 | F6: 226 | G6: 83 | H6: 76 | I6: 87 | J6: 246 | K6: 86 | L6: 96 | M6: 65 | N6: 247 | O6: 65 | P6: 99 | Q6: 93 | R6: 257 | S6: 976
B7: West | C7: 65 | D7: 47 | E7: 86 | F7: 198 | G7: 74 | H7: 61 | I7: 87 | J7: 222 | K7: 84 | L7: 91 | M7: 89 | N7: 264 | O7: 76 | P7: 83 | Q7: 92 | R7: 251 | S7: 935
B8: Northwest | C8: 57 | D8: 94 | E8: 99 | F8: 250 | G8: 83 | H8: 98 | I8: 80 | J8: 261 | K8: 77 | L8: 60 | M8: 87 | N8: 224 | O8: 60 | P8: 62 | Q8: 92 | R8: 214 | S8: 949
B9: Southeast | C9: 92 | D9: 91 | E9: 59 | F9: 242 | G9: 68 | H9: 94 | I9: 91 | J9: 253 | K9: 64 | L9: 72 | M9: 57 | N9: 193 | O9: 61 | P9: 56 | Q9: 56 | R9: 173 | S9: 861
B10: Northeast | C10: 57 | D10: 89 | E10: 70 | F10: 216 | G10: 68 | H10: 69 | I10: 76 | J10: 213 | K10: 87 | L10: 70 | M10: 92 | N10: 249 | O10: 64 | P10: 73 | Q10: 66 | R10: 203 | S10: 881
B11: Southwest | C11: 98 | D11: 72 | E11: 61 | F11: 231 | G11: 60 | H11: 57 | I11: 96 | J11: 213 | K11: 77 | L11: 60 | M11: 57 | N11: 194 | O11: 74 | P11: 77 | Q11: 70 | R11: 221 | S11: 859
B12: Midwest | C12: 81 | D12: 76 | E12: 72 | F12: 229 | G12: 59 | H12: 85 | I12: 75 | J12: 219 | K12: 77 | L12: 72 | M12: 60 | N12: 209 | O12: 92 | P12: 68 | Q12: 85 | R12: 245 | S12: 902
B13: Territories | C13: 89 | D13: 93 | E13: 66 | F13: 248 | G13: 90 | H13: 82 | I13: 85 | J13: 257 | K13: 97 | L13: 92 | M13: 78 | N13: 267 | O13: 83 | P13: 57 | Q13: 65 | R13: 205 | S13: 977
B14: Totals | C14: =SUM(C4:C13) -> 781 | D14: 807 | E14: 783 | F14: 2371 | G14: 665 | H14: 805 | I14: 842 | J14: 2312 | K14: 779 | L14: 768 | M14: 725 | N14: 2272 | O14: 721 | P14: 702 | Q14: 801 | R14: 2224 | S14: 9179
B17: Division | C17: JAN | D17: FEB | E17: MAR | F17: APR | G17: MAY | H17: JUN | I17: JUL | J17: AUG | K17: SEP | L17: OCT | M17: NOV | N17: DEC | O17: Totals
B18: North | C18: 87 | D18: 91 | E18: 95 | G18: 84 | H18: 86 | I18: 59 | J18: 81 | K18: 66 | L18: 71 | M18: 59 | N18: 89 | O18: =SUM(C18:N18) -> 868
B19: South | C19: 67 | D19: 99 | E19: 92 | F19: 80 | G19: 99 | H19: 79 | I19: 71 | J19: 74 | K19: 74 | L19: 75 | M19: 68 | N19: 93 | O19: =SUM(C19:N19) -> 971
B20: East | C20: 88 | D20: 55 | E20: 83 | F20: 83 | G20: 76 | H20: 87 | I20: 86 | J20: 96 | K20: 65 | L20: 65 | M20: 99 | N20: 93 | O20: 976
B21: West | C21: 65 | D21: 47 | E21: 86 | F21: 74 | G21: 61 | H21: 87 | I21: 84 | J21: 91 | K21: 89 | L21: 76 | M21: 83 | N21: 92 | O21: 935
B22: Northwest | C22: 57 | D22: 94 | E22: 99 | F22: 83 | G22: 98 | H22: 80 | I22: 77 | J22: 60 | K22: 87 | L22: 60 | M22: 62 | N22: 92 | O22: 949
B23: Southeast | C23: 92 | D23: 91 | E23: 59 | F23: 68 | G23: 94 | H23: 91 | I23: 64 | J23: 72 | K23: 57 | L23: 61 | M23: 56 | N23: 56 | O23: 861
B24: Northeast | C24: 57 | D24: 89 | E24: 70 | F24: 68 | G24: 69 | H24: 76 | I24: 87 | J24: 70 | K24: 92 | L24: 64 | M24: 73 | N24: 66 | O24: 881
B25: Southwest | C25: 98 | D25: 72 | E25: 61 | F25: 60 | G25: 57 | H25: 96 | I25: 77 | J25: 60 | K25: 57 | L25: 74 | M25: 77 | N25: 70 | O25: 859
B26: Midwest | C26: 81 | D26: 76 | E26: 72 | F26: 59 | G26: 85 | H26: 75 | I26: 77 | J26: 72 | K26: 60 | L26: 92 | M26: 68 | N26: 85 | O26: 902
B27: Territories | C27: 89 | D27: 93 | E27: 66 | F27: 90 | G27: 82 | H27: 85 | I27: 97 | J27: 92 | K27: 78 | L27: 83 | M27: 57 | N27: 65 | O27: 977
B28: Totals | C28: =SUM(C18:C27) -> 781 | D28: 807 | E28: 783 | F28: 665 | G28: 805 | H28: 842 | I28: 779 | J28: 768 | K28: 725 | L28: 721 | M28: 702 | N28: 801 | O28: 9179

Sheet Sample Data
A1: Division | B1: JAN | C1: FEB | D1: MAR | E1: 1st Qtr | F1: APR | G1: MAY | H1: JUN | I1: 2nd Qtr | J1: JUL | K1: AUG | L1: SEP | M1: 3rd Qtr | N1: OCT | O1: NOV | P1: DEC | Q1: 4th Qtr | R1: Totals
A2: North | B2: 87 | C2: 91 | D2: 95 | E2: =SUM(B2:D2) -> 273 | F2: 61 | G2: 84 | H2: 86 | I2: =SUM(F2:H2) -> 231 | J2: 59 | K2: 81 | L2: 66 | M2: =SUM(J2:L2) -> 206 | N2: 71 | O2: 59 | P2: 89 | Q2: =SUM(N2:P2) -> 219 | R2: =SUM(Q2,M2,I2,E2) -> 929
A3: South | B3: 67 | C3: 99 | D3: 92 | E3: 258 | F3: 80 | G3: 99 | H3: 79 | I3: 258 | J3: 71 | K3: 74 | L3: 74 | M3: 219 | N3: 75 | O3: 68 | P3: 93 | Q3: 236 | R3: 971
A4: East | B4: 88 | C4: 55 | D4: 83 | E4: 226 | F4: 83 | G4: 76 | H4: 87 | I4: 246 | J4: 86 | K4: 96 | L4: 65 | M4: 247 | N4: 65 | O4: 99 | P4: 93 | Q4: 257 | R4: 976
A5: West | B5: 88 | C5: 95 | D5: 67 | E5: 250 | F5: 70 | G5: 97 | H5: 78 | I5: 245 | J5: 86 | K5: 57 | L5: 78 | M5: 221 | N5: 81 | O5: 94 | P5: 60 | Q5: 235 | R5: 951
A6: Northwest | B6: 57 | C6: 94 | D6: 99 | E6: 250 | F6: 59 | G6: 98 | H6: 80 | I6: 237 | J6: 77 | K6: 60 | L6: 87 | M6: 224 | N6: 60 | O6: 62 | P6: 92 | Q6: 214 | R6: 925
A7: Southeast | B7: 92 | C7: 91 | D7: 59 | E7: 242 | F7: 68 | G7: 94 | H7: 91 | I7: 253 | J7: 64 | K7: 72 | L7: 57 | M7: 193 | N7: 61 | O7: 56 | P7: 56 | Q7: 173 | R7: 861
A8: Northeast | B8: 57 | C8: 89 | D8: 70 | E8: 216 | F8: 68 | G8: 69 | H8: 76 | I8: 213 | J8: 87 | K8: 70 | L8: 92 | M8: 249 | N8: 64 | O8: 73 | P8: 66 | Q8: 203 | R8: 881
A9: Southwest | B9: 98 | C9: 72 | D9: 61 | E9: 231 | F9: 60 | G9: 57 | H9: 96 | I9: 213 | J9: 77 | K9: 60 | L9: 57 | M9: 194 | N9: 74 | O9: 77 | P9: 70 | Q9: 221 | R9: 859
A10: Midwest | B10: 81 | C10: 76 | D10: 72 | E10: 229 | F10: 59 | G10: 85 | H10: 75 | I10: 219 | J10: 77 | K10: 72 | L10: 60 | M10: 209 | N10: 92 | O10: 68 | P10: 85 | Q10: 245 | R10: 902
A11: Territories | B11: 84 | C11: 93 | D11: 66 | E11: 243 | F11: 90 | G11: 82 | H11: 85 | I11: 257 | J11: 97 | K11: 92 | L11: 78 | M11: 267 | N11: 97 | O11: 57 | P11: 65 | Q11: 219 | R11: 986
A12: Totals | B12: =SUM(B2:B11) -> 799 | C12: 855 | D12: 764 | E12: 2418 | F12: 698 | G12: 841 | H12: 833 | I12: 2372 | J12: 781 | K12: 734 | L12: 714 | M12: 2229 | N12: 740 | O12: 713 | P12: 769 | Q12: 2222 | R12: 9241

Sheet Contents
A1: CONTENTS
A2: Autofill Ordinal
A3: Custom AutoFill
A4: Data Validation List
A5: Fractions
A6: Burndown Chart
A7: Compare Tables
A8: EOM
A9: Format Million
A10: Hide Cell Math Answer
A11: Remove Blanks
A12: Running Total
A13: Emoji in Cell
A14: XLOOKUP

Sheet Autofill Ordinal
C1: Use Superscript | E1: Last Day of Month | F1: Create the pattern | H1: Numbers | I1: Pattern | J1: Ctrl + ; | K1: Ctrl+ + Shift + ; | L1: Day | M1: Month | N1: Quarter | O1: Quarter | P1: Word # | Q1: # Word | R1: Formats
A2: 1st | B2: OR | C2: 1st | E2: 2025-01-31 | F2: 2025-01-31 | H2: 500 | I2: 0 | L2: Wed | M2: November | N2: Qtr 1 | O2: Quarter 3 | P2: Person 1 | Q2: 50 - Item Number | R2: ITEM 01 | T2: JAN | U2: FEB | V2: MAR | W2: 1st Qtr
A3: 2nd | C3: 2nd | E3: 2025-02-28 | F3: 2025-02-28 | I3: 5 | R3: ITEM 02
E4: 2025-03-31 | R4: ITEM 03
E5: 2025-04-30
E6: 2025-05-31
E7: 2025-06-30
E8: 2025-07-31
E9: 2025-08-31
E10: 2025-09-30
E11: 2025-10-31
E12: 2025-11-30
E13: 2025-12-31

Sheet Custom AutoFill
A1: Let's see an example ➡️ | B1: Sheri Example: | E1: Stock Name | F1: Ticker Symbol | H1: Let's make a list ⬇️
B2: Vicki | E2: Goldman Sachs Group Inc. | F2: GS | H2: AMGN
E3: Home Depot Inc. | F3: HD
E4: Caterpillar Inc. | F4: CAT
E5: Amgen Inc. | F5: AMGN
E6: JPMorgan Chase & Co. | F6: JPM

Sheet Data Validation List
A1: Data Validation Lists | G1: Click a cell to see an example of a list ⬇️ | I1: Let's make a list ⬇️ | K1: Click a cell to see a ticker example ⬇️ | L1: This column has an example of using IFS to match the ticker to the stock.
A2: The top 5 stocks from the Dow Jones Industrial Average (DJIA) as of the most recent closing March 26, 2024: | F2: Data Validation Example Name of Stock | G2: Name of Stock | H2: Data Validation Example Stock Ticker Symbol | I2: Stock Ticker Symbol | J2: Data Validation Example with IFS statement | K2: Stock Ticker Symbol | L2: Name of Stock
A3: 1 | B3: Goldman Sachs Group Inc. (GS): Closing price of $413.71 with a 4.35% gain. | C3: Goldman Sachs Group Inc. | D3: GS | G3: Home Depot Inc. | K3: HD | L3: =IFERROR(_xlfn.IFS(K3=$D$3,$C$3,K3=$D$4,$C$4,K3=$D$5,$C$5,K3=$D$6,$C$6,K3=$D$7,$C$7),"Enter Ticker") -> Home Depot Inc.
A4: 2 | B4: Home Depot Inc. (HD): Closing price of $395.20 with a 2.81% gain. | C4: Home Depot Inc. | D4: HD | G4: Caterpillar Inc. | K4: JPM | L4: =IFERROR(_xlfn.IFS(K4=$D$3,$C$3,K4=$D$4,$C$4,K4=$D$5,$C$5,K4=$D$6,$C$6,K4=$D$7,$C$7),"Enter Ticker") -> JPMorgan Chase & Co.
A5: 3 | B5: Caterpillar Inc. (CAT): Closing price of $364.56 with a 2.28% gain. | C5: Caterpillar Inc. | D5: CAT | L5: =IFERROR(_xlfn.IFS(K5=$D$3,$C$3,K5=$D$4,$C$4,K5=$D$5,$C$5,K5=$D$6,$C$6,K5=$D$7,$C$7),"Enter Ticker") -> Enter Ticker
A6: 4 | B6: Amgen Inc. (AMGN): Closing price of $276.95 with a 1.43% gain. | C6: Amgen Inc. | D6: AMGN | L6: =IFERROR(_xlfn.IFS(K6=$D$3,$C$3,K6=$D$4,$C$4,K6=$D$5,$C$5,K6=$D$6,$C$6,K6=$D$7,$C$7),"Enter Ticker") -> Enter Ticker
A7: 5 | B7: JPMorgan Chase & Co. (JPM): Closing price of $199.06 with a 1.39% gain1. | C7: JPMorgan Chase & Co. | D7: JPM | L7: =IFERROR(_xlfn.IFS(K7=$D$3,$C$3,K7=$D$4,$C$4,K7=$D$5,$C$5,K7=$D$6,$C$6,K7=$D$7,$C$7),"Enter Ticker") -> Enter Ticker
B8: Note: Use Alt+Enter to use a Return within a cell. | F8: Note: This can be done with larger lists and the source data can be hidden or in another location.

Sheet Fractions
E1: Let's type fractions ⬇️ | G1: It should look like this ⬇️
F2: ⬅️ Propertly enter 3/4 | G2: 0.75
F3: ⬅️ Propertly enter 7/5 | G3: 1.4
F4: ⬅️ Propertly enter 1/2 | G4: 0.5
F5: ⬅️ Propertly enter 1 7/8 | G5: 1.875
A20: Select Cell ® Enter Number ® Fraction results | B20: Example Result | C20: Example Result
B21: No change in format | C21: Format updated
A22: Up to one digit (1/4) | B22: 0.25 | C22: 0.25
A23: Up to two digits (21/25)  numbers move to accommodate 2 digits | B23: 0.84 | C23: 0.84
A24: Up to three digits (312/943)  numbers move to accommodate 3 digits | B24: 0.3308589608 | C24: 0.3308589608
A25: As halves (1/2) | B25: 0.5 | C25: 0.5
A26: As quarters (2/4) | B26: 0.5 | C26: 0.5
A27: As eighths (4/8) | B27: 0.5 | C27: 0.5
A28: As sixteenths (8/16) | B28: 0.5 | C28: 0.5
A29: As tenths (3/10) | B29: 0.3 | C29: 0.3
A30: As hundredths (30/100) | B30: 0.3 | C30: 0.3
A32: Some guidelines
A33: If Excel can’t display the exact fraction, Excel will round
A34: Excel converts fractions to the lowest denominator when entered
A35: For example, if you enter 0 5/10, Excel will display 1/2
A36: If you don’t want Excel to convert the lowest denominator, create a custom format
A37: ??/10 | B37: No Format | C37: Formatted ??/10 | D37: What was typed
B38: 0.5 | C38: 0.5 | D38: 0 5/10
B39: 0.5 | C39: 0.5 | D39: 0 2/20
B40: 1.25 | C40: 1.25 | D40: 0 5/4
B41: 2.2 | C41: 2.2 | D41: 0 22/10
A43: Note: The custom format does not work with all fractions.
A101: Be sure to match the section component to the entered denominator. For instance, if you entered 0 5/100, you’d use the format ???/100. You could enter ?/100, but ???/100 would accommodate a 3-digit numerator.
A102: If you want to enter fractions as fractions by displaying the underlying value, format the entries using one of the Number formats. In this way, you can quickly enter fractions without converting them to whole and decimal values in your head.
A103: It’s up to you whether you need to format fractions differently than Excel’s first display. The way you’re using those fractions will help you make that decision.

Sheet Burndown Chart
A1: Burndown Chart
A2: A burndown chart is a line chart that visually represents the remaining tasks versus the amount of time left to complete. Burndown charts allow team members to view progress and adapt their efforts to meet goals. | J2: The example on the left is date dependant. The tracking is to identify if the project is running on schedule, therefore the date is important. To simply track the estimated and actual duration, the date is not needed.
A3: A burndown chart requires three columns in Excel of which two must be durations. There is an estimated task duration and actual task duration. | J3: Example 2: Tracking not based on dates, tracking to identify duration for next time
A4: Example 1: Tracking real-time for being ahead or behind schedule
A5: In this example, the data represents the goal to begin on January 8 and complete all tasks by January 19. | J5: In this example, the data represents the goal to track the estimated time versus the actual time.
A6: Task durations are in days. | J6: Task durations are in days.
B7: Date of task | C7: Estimated Task Duration | D7: Actual Task Duration | E7: Task | K7: Task | L7: Estimated Task Duration | M7: Actual Task Duration
B8: 2024-01-08 | C8: 5 | D8: 5 | E8: Task 01 | K8: Event venues | L8: 8 | M8: 6
B9: 2024-01-09 | C9: 5 | D9: 5 | E9: Task 02 | K9: Food | L9: 4 | M9: 5
B10: 2024-01-10 | C10: 1 | D10: 2 | E10: Task 03 | K10: Marketing | L10: 15 | M10: 10
B11: 2024-01-11 | C11: 4 | D11: 3 | E11: Task 04 | K11: Speakers | L11: 15 | M11: 20
B12: 2024-01-12 | C12: 6 | D12: 5 | E12: Task 05 | K12: Sponsors | L12: 15 | M12: 15
B13: 2024-01-15 | C13: 2 | D13: 3 | E13: Task 06 | K13: Sessions | L13: 15 | M13: 8
B14: 2024-01-16 | C14: 5 | D14: 5 | E14: Task 07 | K14: Materials | L14: 15 | M14: 12
B15: 2024-01-17 | C15: 4 | D15: 4 | E15: Task 08 | K15: Catering | L15: 7 | M15: 10
B16: 2024-01-18 | C16: 3 | D16: 1 | E16: Task 09 | K16: Badges | L16: 5 | M16: 3
B17: 2024-01-19 | C17: 1 | D17: 1 | E17: Task 10 | K17: Materials | L17: 10 | M17: 6
A32: The chart shows when you are ahead of schedule. Anytime the green line (Actual Task Duration) goes above the black line (Estimated Task Duration) you are behind schedule.
A33: The chart shows when you are behind schedule. Anytime the green line (Actual Task Duration) goes below the black line (Estimated Task Duration) you are ahead of schedule. | J33: The chart is not about being on schedule because dates are not included, it shows how much longer or how much less time a task took than was scheduled. Anytime the green line (Actual Task Duration) goes below the black line (Estimated Task Duration) it simply shows the task took less time than anticipated.
A34: When the green and black line meet, you are exactly on schedule at that point in time.
A35: You finished on time as shown by the meeting of the green and black lines.

Sheet Camera
B2: The Excel Camera Tool is a nifty feature that allows you to create dynamic screenshots of specific ranges of cells in your Excel spreadsheet. These snapshots update automatically when the source data changes. | F2: Division | G2: Jan | H2: Feb | I2: Mar | J2: Total | L2: Let's use the camera ⬇️
F3: North | G3: 95 | H3: 67 | I3: 98 | J3: =SUM(G3:I3) -> 260
F4: South | G4: 66 | H4: 99 | I4: 65 | J4: 230
B5: Where is the snapshots stored using the Camera Tool | F5: East | G5: 92 | H5: 71 | I5: 70 | J5: 233
B6: Screenshots will be stored in your clipboard. | F6: West | G6: 91 | H6: 93 | I6: 98 | J6: 282
B7: Add the Camera to the Quick Access Toolbar (QAT):
B8: 1 | C8: Right-click on any of the tabs in the Excel ribbon or anywhere on the QAT.
B9: 2 | C9: Select Customize Quick Access Toolbar…
B10: 3 | C10: In the Choose Commands From drop-down, select All Commands.
B11: 4 | C11: Scroll down and choose the Camera Tool (it looks like a camera icon).
B12: 5 | C12: Click the Add>> button to add it to your QAT.
B13: 6 | C13: Click OK to save the changes.
B14: Use the Camera
B15: 1 | C15: Select the cell or range of cells you want to capture as an image.
B16: 2 | C16: Click on the Excel Camera Tool icon in the Quick Access Toolbar.
B17: 3 | C17: Go to the worksheet where you want to place the snapshot and click anywhere.
B18: Voilà! You now have an image of the selected range.
B19: If you make changes in the original data set, the image will automatically update itself.
B20: The Excel Camera Tool is like a live feed, and it works even if the data and image are in different worksheets within the same workbook. Give it a try!

Sheet Compare Tables
B1: This example is comparing quantity in stock from one month to the next. The conditional formatting compares columns C and F, if they do not match, the conditional format of an orange highlight appears.
B2: Quantity in stock in JANUARY | E2: Quantity in stock in FEBRUARY
B3: Item | C3: Number | E3: Item | F3: Number
B4: Financial Planner | C4: 25 | E4: Financial Planner | F4: 15
B5: Financial Planning Software | C5: 36 | E5: Financial Planning Software | F5: 36
B6: Investment Books | C6: 21 | E6: Investment Books | F6: 21
B7: Ergonomic Keyboard | C7: 27 | E7: Ergonomic Keyboard | F7: 27
B8: Stock Market Board Game | C8: 3 | E8: Stock Market Board Game | F8: 1
B9: Finance Calculator | C9: 12 | E9: Finance Calculator | F9: 12
B10: Laptop Bag | C10: 1 | E10: Laptop Bag | F10: 0
A12: 1 | B12: Select what you want to compare (include all cells that you would like to have highlighted)
B13: For this example, I will select B23:C29 and then hold the CTRL key down while selecting E23:F29, then release the CTRL key to continue.
A14: 2 | B14: On the Home Ribbon, select Conditional Formatting
A15: 3 | B15: Selelct New Rule...
A16: 4 | B16: Select Use a formula to determine which cells to format
A17: 5 | B17: Click in the line Format values where this formula is true:
B18: Type the formula to include the cells that should match In this example it would be =$C23<>$F23 | E18: Let's create a conditional format ↙️ ⬇️
B20: Quantity in stock in FEBRUARY | E20: Quantity in stock in MARCH
B21: Item | C21: Number | E21: Item | F21: Number
B22: Financial Planner | C22: 15 | E22: Financial Planner | F22: 17
B23: Financial Planning Software | C23: 36 | E23: Financial Planning Software | F23: 36
B24: Investment Books | C24: 21 | E24: Investment Books | F24: 15
B25: Ergonomic Keyboard | C25: 27 | E25: Ergonomic Keyboard | F25: 25
B26: Stock Market Board Game | C26: 1 | E26: Stock Market Board Game | F26: 1
B27: Finance Calculator | C27: 12 | E27: Finance Calculator | F27: 12
B28: Laptop Bag | C28: 0 | E28: Laptop Bag | F28: 10
B30: To find the increased inventory use =$C34<$F34
B31: Quantity in stock in FEBRUARY | E31: Quantity in stock in MARCH
B32: Item | C32: Number | E32: Item | F32: Number
B33: Financial Planner | C33: 15 | E33: Financial Planner | F33: 17
B34: Financial Planning Software | C34: 36 | E34: Financial Planning Software | F34: 36
B35: Investment Books | C35: 21 | E35: Investment Books | F35: 15
B36: Ergonomic Keyboard | C36: 27 | E36: Ergonomic Keyboard | F36: 25
B37: Stock Market Board Game | C37: 1 | E37: Stock Market Board Game | F37: 1
B38: Finance Calculator | C38: 12 | E38: Finance Calculator | F38: 12
B39: Laptop Bag | C39: 0 | E39: Laptop Bag | F39: 10
B41: To find the decreased inventory use =$C45>$F45
B42: Quantity in stock in FEBRUARY | E42: Quantity in stock in MARCH
B43: Item | C43: Number | E43: Item | F43: Number
B44: Financial Planner | C44: 15 | E44: Financial Planner | F44: 17
B45: Financial Planning Software | C45: 36 | E45: Financial Planning Software | F45: 36
B46: Investment Books | C46: 21 | E46: Investment Books | F46: 15
B47: Ergonomic Keyboard | C47: 27 | E47: Ergonomic Keyboard | F47: 25
B48: Stock Market Board Game | C48: 1 | E48: Stock Market Board Game | F48: 1
B49: Finance Calculator | C49: 12 | E49: Finance Calculator | F49: 12
B50: Laptop Bag | C50: 0 | E50: Laptop Bag | F50: 10
B52: Or show both the larger and smaller numbers by using both conditional formats
B53: Quantity in stock in FEBRUARY | E53: Quantity in stock in MARCH
B54: Item | C54: Number | E54: Item | F54: Number
B55: Financial Planner | C55: 15 | E55: Financial Planner | F55: 17
B56: Financial Planning Software | C56: 36 | E56: Financial Planning Software | F56: 36
B57: Investment Books | C57: 21 | E57: Investment Books | F57: 15
B58: Ergonomic Keyboard | C58: 27 | E58: Ergonomic Keyboard | F58: 25
B59: Stock Market Board Game | C59: 1 | E59: Stock Market Board Game | F59: 1
B60: Finance Calculator | C60: 12 | E60: Finance Calculator | F60: 12
B61: Laptop Bag | C61: 0 | E61: Laptop Bag | F61: 10

Sheet EOM
B1: EOMONTH()
B2: =EOMONTH(startdate,months)
B3: Excel’s EOMONTH() function returns the last day in a month, and it handles leap years. Most users will use it to determine maturity dates, due dates, and even forecasting. Its syntax is simple: =EOMONTH(startdate,months)
B4: In the =EOMONTH(startdate,months) function, startdate = the initial or anchor date
B5: In the =EOMONTH(startdate,months) function, months = how far into the future or the past the end date should display
B6: If months is positive, the function returns a future date. When months is negative, the function returns a past date. Use 0 to return the last day of the specified month.
B7: How to specify the month
B8: The Date of Investment is used to calculate the last day of the month in which the investment was made.
B9: We returned the last day of each month by referring to the dates and using 0 as the months argument in the function
B10: Client | C10: Date of Investment | D10: EOM | E10: Days to EOM
B11: Client 01 | C11: 2024-02-27 | D11: =EOMONTH(C11,0) | E11: =D11-C11 ->  | F11: ⬅️ The EOM function has an apostrophe to show it as the function, remove the ' to see the calculation result
B12: Client 02 | C12: 2021-02-04 | D12: =EOMONTH(C12,0) -> 2021-02-28 | E12: =D12-C12 -> 24
B13: Client 03 | C13: 2023-09-16 | D13: 2023-09-30 | E13: 14
B14: Client 04 | C14: 2022-03-18 | D14: 2022-03-31 | E14: 13
B15: Client 05 | C15: 2023-11-29 | D15: 2023-11-30 | E15: 1
B16: Client 06 | C16: 2023-07-26 | E16: -45133 | F16: ⬅️ Let's create the calculation for the end of the current month = EOMonth(C16,0)
B17: This function returns a set of last-day-of-the-month dates for the month expressed in the EOM column. Notice that the two February dates correctly return Feb 29 and Feb 28, as 2024 was a leap year and 2021 is not.
B18: Into the future
B19: The Date of Investment is used to calculate the last day of the month which is 6 months into the future.
B20: We returned the last day of each month by referring to the dates and using 6 as the months argument in the function
B21: Client | C21: Date of Investment | D21: EOM | E21: Days to EOM | F21: 6 Months EOM | G21: Days to EOM 6 Months
B22: Client 01 | C22: 2024-02-27 | D22: =EOMONTH(C22,0) -> 2024-02-29 | E22: =D22-C22 -> 2 | F22: =EOMONTH(C22,6) | G22: =F22-C22 ->  | H22: ⬅️ The EOM function has an apostrophe to show it as the function, remove the ' to see the calculation result
B23: Client 02 | C23: 2021-02-04 | D23: =EOMONTH(C23,0) -> 2021-02-28 | E23: =D23-C23 -> 24 | F23: =EOMONTH(C23,6) -> 2021-08-31 | G23: =F23-C23 -> 208
B24: Client 03 | C24: 2023-09-16 | D24: 2023-09-30 | E24: 14 | F24: 2024-03-31 | G24: 197
B25: Client 04 | C25: 2022-03-18 | D25: 2022-03-31 | E25: 13 | F25: 2022-09-30 | G25: 196
B26: Client 05 | C26: 2023-11-29 | D26: 2023-11-30 | E26: 1 | F26: 2024-05-31 | G26: 184
B27: Client 06 | C27: 2023-07-04 | D27: 2023-07-31 | E27: 27 | G27: -45111 | H27: ⬅️ Let's create the calculation for the last day of the month in 6 months = EOMonth(C27,6)
B29: Into the past
B30: The Date of Investment is used to calculate the last day of the month prior
B31: We returned the last day of each month by referring to the dates and using -1 as the months argument in the function
B32: Client | C32: Date of Investment | D32: EOM | E32: Days to EOM | F32: 6 Months EOM | G32: Days to EOM 6 Months | H32: EOM, Month Prior | I32: Days to EOM, Month Prior
B33: Client 01 | C33: 2024-02-27 | D33: =EOMONTH(C33,0) -> 2024-02-29 | E33: =D33-C33 -> 2 | F33: =EOMONTH(C33,6) -> 2024-08-31 | G33: =F33-C33 -> 186 | H33: =EOMONTH(C33,-1) | I33: =H33-C33 ->  | K33: ⬅️ The EOM function has an apostrophe to show it as the function, remove the ' to see the calculation result
B34: Client 02 | C34: 2021-02-04 | D34: =EOMONTH(C34,0) -> 2021-02-28 | E34: =D34-C34 -> 24 | F34: =EOMONTH(C34,6) -> 2021-08-31 | G34: =F34-C34 -> 208 | H34: =EOMONTH(C34,-1) -> 2021-01-31 | I34: =H34-C34 -> -4
B35: Client 03 | C35: 2023-09-16 | D35: 2023-09-30 | E35: 14 | F35: 2024-03-31 | G35: 197 | H35: 2023-08-31 | I35: -16
B36: Client 04 | C36: 2022-03-18 | D36: 2022-03-31 | E36: 13 | F36: 2022-09-30 | G36: 196 | H36: 2022-02-28 | I36: -18
B37: Client 05 | C37: 2023-11-29 | D37: 2023-11-30 | E37: 1 | F37: 2024-05-31 | G37: 184 | H37: 2023-10-31 | I37: -29
B38: Client 06 | C38: 2023-07-04 | D38: 2023-07-31 | E38: 27 | F38: 2024-01-31 | G38: 211 | I38: -45111 | K38: ⬅️ Let's create the calculation for the last day of the month for the previous month = EOMonth(C38,-1)
B40: How about today?
B41: The function =Today() will show the current date | F41: =TODAY() -> 2024-03-29 | G41: =Today()
B42: Using a reference cell to find the last day of the month for the current date | F42: =EOMONTH(F41,0) -> 2024-03-31 | G42: =EOMONTH(F41,0)
B43: Using a nested function to find the last day of the month for the current date | F43: =EOMONTH(TODAY(),0) -> 2024-03-31 | G43: =EOMONTH(TODAY(),0)
B44: Using a nested function to find the last day of the month 6 months in the future from the current date | F44: =EOMONTH(TODAY(),6) -> 2024-09-30 | G44: =EOMONTH(TODAY(),6)
B45: Using a nested function to find the last day of the month 9 months in the future from the current date | F45: =EOMONTH(TODAY(),9) -> 2024-12-31 | G45: =EOMONTH(TODAY(),9)
B46: Using a nested function to find the last day of the month that is the month prior to the current date | F46: =EOMONTH(TODAY(),-1) -> 2024-02-29 | G46: =EOMONTH(TODAY(),-1)
B47: CURRENT MONTH
B48: Excel doesn’t offer a function that returns the total number of days in a specified month, and before EOMONTH() came around, an expression to do so was complex. Now, by combining EOMONTH() and DAY() we can get an integer value that you can include in other expressions when you need the number of days in a specific month:
B49: Date to use for example: | D49: 2024-07-04
B50: =DAY(EOMONTH(TODAY(),0)) will show the number of days in the current month | F50: =DAY(EOMONTH(TODAY(),-2)) -> 31 | G50: =_xlfn.CONCAT("Today is: ",TEXT(TODAY(), "mmmm d, yyyy")) -> Today is: March 29, 2024
B51: Using a nested function, and today's date, find the number of days in the month that is 6 months from today | F51: =DAY(EOMONTH(TODAY(),6)) -> 30 | G51: =DAY(EOMONTH(TODAY(),6))
B52: Using a nested function, and specific date, find the number of days in the month that is 9 months from that date | F52: =DAY(EOMONTH(D49,9)) -> 30 | G52: =DAY(EOMONTH(D49,9))
B53: Using a nested function, and today's date, find the number of days in the previous month | F53: =DAY(EOMONTH(TODAY(),-1)) -> 29 | G53: =DAY(EOMONTH(TODAY(),-1))
B54: Using a nested function, and specific date, find the number of days in the previous month | F54: =DAY(EOMONTH(D49,-1)) -> 30 | G54: =DAY(EOMONTH(D49,-1))

Sheet Format Million
B1: Excel’s custom millions format | L1: Try it lines begin on row 24
B2: $#.##,, "M"; formats without all of the zeros | L2: ⬇️
B3: This format $#.##,, "M"; uses only 1 section of the potential formatting options. For clarity let's quickly look at the formatting syntax.
B4: Each formatting code has up to four sections, separated by semi-colons (;)
B5: The first section identifies how to format to positive values
B6: The second section identifies how to format negative values
B7: The third section applies to formatting a 0 value
B8: The fourth section applies to text formats
B9: For example, the format for accounting (currency) is as follows: _($* #,##0.00_);_($* (#,##0.00);_($* "-"??_);_(@_)
B10: The first section for positive numbers: Displayed with a dollar sign, thousands separator, and two decimal places. If you apply this format to the number 1234.56, it will appear as $1,234.56.
B11: The second section for negative numbers: Enclosed in parentheses and formatted the same as positive numbers. If you apply it to the number -987.65, it will appear as ($987.65).
B12: The third section for zero values: Displayed as a hyphen. If you apply it to the number 0, it will appear as - (a hyphen).
B13: The fourth section for text values: Displayed as is. If you apply it to the text Hello, it will remain as Hello.
B14: Custom format for million $#.##,, "M";
B15: Excel’s custom millions format uses only the first section, which specifies the formatting for positive values.
B16: Now let’s break down the custom format for values larger than or equal to one million. This format displays the dollar symbol, $ to the left. Next, the #.##,, formats the actual digits. First, the two commas represent the thousands separator, and ,, omits values in the thousand and hundred places. For example, 1781564 rather than showing as $1,781,564 displays as $1.78 M. The decimal is necessary for conversion; 1.78 M is not the same thing as 178 M.
B17: To add this custom format to your Excel workbook, do the following:
A18: 1 | B18: On the Home tab, click the dialog launcher for the Number group (the dialog launcher is the little arrow in the bottom right of the Number group)
A19: 2 | B19: Click the Number tab if necessary
A20: 3 | B20: In the Category list, select Custom
A21: 4 | B21: Click in the line below Type: and key in the custom format $#.##,, "M"; and then click OK
B23: 1st Qtr | C23: 2nd Qtr | D23: 3rd Qtr | E23: 4th Qtr | G23: 1st Qtr | H23: 2nd Qtr | I23: 3rd Qtr | J23: 4th Qtr
A24: ➡️ | B24: 3782065 | C24: 8736150 | D24: 6583907 | E24: 3763415 | G24: 3782065 | H24: 8736150 | I24: 6583907 | J24: 3763415
A25: Try it | B25: 8803566 | C25: 2001272 | D25: 8580929 | E25: 5619530 | G25: 8803566 | H25: 2001272 | I25: 8580929 | J25: 5619530
B26: 5472239 | C26: 3390865 | D26: 5258481 | E26: 2454613 | G26: 5472239 | H26: 3390865 | I26: 5258481 | J26: 2454613
B27: This format doesn’t change the underlying value—only the way Excel displays it. You might not like the way this format displays values less than one million. They’re not as readable as you might like; in fact, they might be misread. That’s why you need a custom thousands format. $###,"K"; Repeat the steps and create the thousands format.
B28: Excel’s custom thousands format $###, "K";
B29: 1st Qtr | C29: 2nd Qtr | D29: 3rd Qtr | E29: 4th Qtr | G29: 1st Qtr | H29: 2nd Qtr | I29: 3rd Qtr | J29: 4th Qtr
A30: ➡️ | B30: 8500 | C30: 7455 | D30: 4069 | E30: 49555 | G30: 8500 | H30: 7455 | I30: 4069 | J30: 49555
A31: Try it | B31: 46767 | C31: 47903 | D31: 40258 | E31: 58580 | G31: 46767 | H31: 47903 | I31: 40258 | J31: 58580
B32: 60785 | C32: 27602 | D32: 40242 | E32: 54023 | G32: 60785 | H32: 27602 | I32: 40242 | J32: 54023
B34: How to create conditional formatting rules in Excel
B35: When there are mixed formats, use the conditional formatting option too get it all just right!.
B36: With conditional formatiing you will use the New Rule option and Format only cells that contain
B37: Use the custom formats you created! Let's look at an example: ↘️ and then give is a shot in the data on the left.
B38: 1st Qtr | C38: 2nd Qtr | D38: 3rd Qtr | E38: 4th Qtr | G38: 1st Qtr | H38: 2nd Qtr | I38: 3rd Qtr | J38: 4th Qtr
A39: ➡️ | B39: 891130 | C39: 30842977 | D39: 966182 | E39: 29766938 | G39: 891130 | H39: 30842977 | I39: 966182 | J39: 29766938
A40: Try it | B40: 6921952 | C40: 730625 | D40: 15690170 | E40: 9735981 | G40: 6921952 | H40: 730625 | I40: 15690170 | J40: 9735981
B41: 11431260 | C41: 21753814 | D41: 29989874 | E41: 28863378 | G41: 11431260 | H41: 21753814 | I41: 29989874 | J41: 28863378
B43: To create an Excel conditional format rule that handles values that are greater than or equal to one million:
A44: 1 | B44: Select the data to format - in this example it is B38:E40
A45: 2 | B45: On the Home tab, click Conditional Formatting in the Styles group
A46: 3 | B46: Choose New Rule from the dropdown list
A47: 4 | B47: A dialog box opens, in the top section choose Format Only Cells That Contain in the top pane
A48: 5 | B48: In the lower pane, the first dropdown is Cells, and that’s what we need, do not change it
A49: 6 | B49: Choose Greater Than or Equal to from the second dropdown
A50: 7 | B50: In the third control, enter 1000000
A51: 8 | B51: Click Format
A52: 9 | B52: Click the Number tab
A53: 10 | B53: From the Category list, choose Custom
A54: 11 | B54: To the right, select the custom format, $#.##,, "M" and click OK
B55: Now, repeat the instructions to add a rule for the custom format
B56: $###, "K";

Sheet Hide Cell Math Answer
L2: The direction on the left explain how to use the custom format of ;;; to hide cell contents, followed by directions on how to hide the formula bar. Let's practice using the ;;; custom format ➡️ JAN and FEB are hidden, practice on MAR | U2: Percent Change in Interest Earned
U3: Client | V3: JAN Interest | W3: FEB Interest | X3: % Change Jan-Feb | Y3: MAR Interest | Z3: % Change Feb-Mar
U4: Juan L | V4: 95 | W4: 98 | X4: =(W4-V4)/V4 -> 0.03157894737 | Y4: 93 | Z4: =(Y4-W4)/W4 -> -0.05102040816
U5: Mia P | V5: 60 | W5: 54 | X5: =(W5-V5)/V5 -> -0.1 | Y5: 74 | Z5: 0.3703703704
U6: Kali Y | V6: 71 | W6: 99 | X6: 0.3943661972 | Y6: 99 | Z6: 0
U7: Broj K | V7: 66 | W7: 78 | X7: 0.1818181818 | Y7: 89 | Z7: 0.141025641
U8: Ken Q | V8: 59 | W8: 75 | X8: 0.2711864407 | Y8: 74 | Z8: -0.01333333333
U9: Joy A | V9: 82 | W9: 72 | X9: -0.1219512195 | Y9: 75 | Z9: 0.04166666667
U10: Please note the amount if interest is hidden, the focus is on the increase or decrease in interest earned.
U11: To calculate the percent change =(current month - previous month)/previous month
N48: s

Sheet Remove Blanks
T1: Let's remove the blanks ⬇️
T2: Division | U2: JAN | V2: FEB | W2: MAR | X2: 1st Qtr | Y2: APR | Z2: MAY | AA2: JUN | AB2: 2nd Qtr | AC2: JUL | AD2: AUG | AE2: SEP | AF2: 3rd Qtr | AG2: OCT | AH2: NOV | AI2: DEC | AJ2: 4th Qtr | AK2: Totals
T3: North | U3: 87 | V3: 91 | W3: 95 | X3: =SUM(U3:W3) -> 273 | Y3: 61 | Z3: 84 | AA3: 86 | AB3: =SUM(Y3:AA3) -> 231 | AC3: 59 | AD3: 81 | AE3: 66 | AF3: =SUM(AC3:AE3) -> 206 | AG3: 71 | AH3: 59 | AI3: 89 | AJ3: =SUM(AG3:AI3) -> 219 | AK3: =SUM(AJ3,AF3,AB3,X3) -> 929
T4: South | X4: 0 | Y4: 80 | Z4: 99 | AA4: 79 | AB4: 258 | AC4: 71 | AD4: 74 | AE4: 74 | AF4: 219 | AG4: 75 | AH4: 68 | AJ4: 143 | AK4: 620
T5: East | U5: 88 | V5: 55 | W5: 83 | X5: 226 | Y5: 83 | AA5: 87 | AB5: 170 | AC5: 86 | AD5: 96 | AF5: 182 | AG5: 65 | AH5: 99 | AI5: 93 | AJ5: 257 | AK5: 835
T6: West | U6: 88 | V6: 95 | W6: 67 | X6: 250 | Y6: 70 | Z6: 97 | AA6: 78 | AB6: 245 | AC6: 86 | AD6: 57 | AE6: 78 | AF6: 221 | AG6: 81 | AH6: 94 | AI6: 60 | AJ6: 235 | AK6: 951
T7: Northwest | U7: 57 | V7: 94 | W7: 99 | X7: 250 | Y7: 59 | Z7: 98 | AA7: 80 | AB7: 237 | AC7: 77 | AD7: 60 | AE7: 87 | AF7: 224 | AG7: 60 | AH7: 62 | AI7: 92 | AJ7: 214 | AK7: 925
T9: Southeast | U9: 92 | V9: 91 | W9: 59 | X9: 242 | Y9: 68 | Z9: 94 | AA9: 91 | AB9: 253 | AC9: 64 | AD9: 72 | AE9: 57 | AF9: 193 | AG9: 61 | AH9: 56 | AI9: 56 | AJ9: 173 | AK9: 861
T10: Northeast | U10: 57 | V10: 89 | W10: 70 | X10: 216 | Y10: 68 | Z10: 69 | AA10: 76 | AB10: 213 | AC10: 87 | AD10: 70 | AE10: 92 | AF10: 249 | AG10: 64 | AH10: 73 | AI10: 66 | AJ10: 203 | AK10: 881
T11: Southwest | U11: 98 | V11: 72 | W11: 61 | X11: 231 | Y11: 60 | Z11: 57 | AA11: 96 | AB11: 213 | AC11: 77 | AD11: 60 | AE11: 57 | AF11: 194 | AG11: 74 | AH11: 77 | AI11: 70 | AJ11: 221 | AK11: 859
T12: Midwest | U12: 81 | V12: 76 | W12: 72 | X12: 229 | AA12: 75 | AB12: 75 | AC12: 77 | AD12: 72 | AE12: 60 | AF12: 209 | AH12: 68 | AI12: 85 | AJ12: 153 | AK12: 666
T13: Territories | U13: 84 | V13: 93 | W13: 66 | X13: 243 | Y13: 90 | Z13: 82 | AA13: 85 | AB13: 257 | AC13: 97 | AD13: 92 | AE13: 78 | AF13: 267 | AG13: 97 | AH13: 57 | AI13: 65 | AJ13: 219 | AK13: 986
T14: Data Totals
T15: Totals | U15: =SUM(U3:U13) -> 732 | V15: =SUM(V3:V13) -> 756 | W15: =SUM(W3:W13) -> 672 | X15: =SUM(X3:X13) -> 2160 | Y15: =SUM(Y3:Y13) -> 639 | Z15: =SUM(Z3:Z13) -> 680 | AA15: =SUM(AA3:AA13) -> 833 | AB15: =SUM(AB3:AB13) -> 2152 | AC15: =SUM(AC3:AC13) -> 781 | AD15: =SUM(AD3:AD13) -> 734 | AE15: =SUM(AE3:AE13) -> 649 | AF15: =SUM(AF3:AF13) -> 2164 | AG15: =SUM(AG3:AG13) -> 648 | AH15: =SUM(AH3:AH13) -> 713 | AI15: =SUM(AI3:AI13) -> 676 | AJ15: =SUM(AJ3:AJ13) -> 2037 | AK15: =SUM(AK3:AK13) -> 8513

Sheet Running Total
I1: Let's try the Quick Analysis Tool - select M7:S7 ➡️
M2: Division | N2: JAN | O2: FEB | P2: MAR | Q2: APR | R2: MAY | S2: JUN | T2: Totals
I3: Let's try the PivotTable begins on row 39 ⬇️ | M3: North | N3: 87 | O3: 91 | P3: 95 | Q3: 56 | R3: 84 | S3: 86 | T3: =SUM(N3:S3) -> 499
M4: South | N4: 67 | O4: 99 | P4: 92 | Q4: 80 | R4: 99 | S4: 79 | T4: =SUM(N4:S4) -> 516
M5: East | N5: 88 | O5: 55 | P5: 83 | Q5: 83 | R5: 76 | S5: 87 | T5: =SUM(N5:S5) -> 472
M6: West | N6: 65 | O6: 47 | P6: 86 | Q6: 74 | R6: 61 | S6: 87 | T6: =SUM(N6:S6) -> 420
M7: Totals | N7: =SUM(N3:N6) -> 307 | O7: =SUM(O3:O6) -> 292 | P7: =SUM(P3:P6) -> 356 | Q7: =SUM(Q3:Q6) -> 293 | R7: =SUM(R3:R6) -> 320 | S7: =SUM(S3:S6) -> 339 | T7: =SUM(T3:T6) -> 1907
A38: Let's try the PivotTable ⬇️
B39: Month | C39: Sales | F39: Row Labels | G39: Sum of Sales | H39: Sales Running Totals
B40: January | C40: 46 | F40: January | G40: 123 | H40: 123
B41: January | C41: 28 | F41: February | G41: 224 | H41: 347
B42: January | C42: 49 | F42: March | G42: 39 | H42: 386
B43: February | C43: 50 | F43: Grand Total | G43: 386
B44: February | C44: 20
B45: February | C45: 39
B46: February | C46: 26
B47: February | C47: 44
B48: February | C48: 45
B49: March | C49: 13
B50: March | C50: 26

Sheet Emoji in Cell
A1: Adding an Emoji in a cell | M1: Let's try an Emoji in a cell ⬇️
A2: This is a super cool, fast trick!
A3: Using the keyboard Window Key and the Period Key emojis and other items may be inserted. | M3: 💕
A4: Simply select the cell, or be inside of the cell typing, and hold the Window Key while clicking the Period Key (.)
A5: Then select the emoji
A6: There is an arrow to select from more options and a search bar to find specific items
A7: There are other items to insert as well, check it out!
A8: Excel does not support the 3d look of an emoji so they insert as an icon, but then they can be formatted as different colors.

Sheet XLOOKUP
E2: Date | F2: Sales | G2: Rep | H2: Commission
E3: 2023-01-01 | F3: 50809 | G3: Juan | H3: =F3*0.12 -> 6097.08
E4: 2023-03-01 | F4: 88473 | G4: Marta | H4: =F4*0.12 -> 10616.76
E5: 2023-04-01 | F5: 65646 | G5: Izeakel | H5: 7877.52
E6: 2023-05-01 | F6: 33990 | G6: Marina | H6: 4078.8
E7: 2023-06-01 | F7: 89155 | G7: Bob | H7: 10698.6
E8: 2023-07-01 | F8: 50453 | G8: Cam | H8: 6054.36
E9: 2023-08-01 | F9: 97328 | G9: Sloah | H9: 11679.36
E10: 2023-09-01 | F10: 90874 | G10: Jo | H10: 10904.88
E11: 2023-10-01 | F11: 115944 | G11: April | H11: 13913.28
E12: 2023-11-01 | F12: 82560 | G12: Pete | H12: 9907.2
E13: 2023-12-01 | F13: 35080 | G13: Rowan | H13: 4209.6
E15: Date | F15: Sales | G15: Rep | H15: Commission
E16: =_xlfn.XLOOKUP(G16,G3:G13,E3:E13,"Not in list") -> 2023-07-01 | F16: =_xlfn.XLOOKUP(G16,G3:G13,F3:F13,"Not in list") -> 50453 | G16: Cam | I16: ⬅️ Let's create the XLOOKUP for Commission, using the Rep as the Lookup Value
